bitfinex/quotes_ETHUSD_20230111
["timestamp","ask_amount","ask_price","bid_price","bid_amount"]
[1673466570015,15.07522064,1342.4,1342.2,0.07936478]
[1673466570338,22.52478064,1342.4,1342.2,0.07936478]
[1673466570559,20.02478064,1342.4,1342.2,0.07936478]
[1673466570856,22.8346457,1342.4,1342.2,0.07936478]
[1673466572382,15.3850857,1342.4,1342.2,0.07936478]
[1673466572595,15.3850857,1342.4,1342.1,22.43077478]
[1673466573534,15.3850857,1342.4,1342.1,14.97993478]
[1673466574218,28.9557657,1342.4,1342.1,0.099]
[1673466574427,2.89557657,1342.3,1342.0,7.55035]
[1673466574750,7.44998,1342.3,1342.0,15.00171]
[1673466575120,10.44998,1342.3,1342.0,15.00171]
[1673466575483,10.44998,1342.3,1342.0,0.099]
[1673466575484,30.46551064,1342.3,1342.0,0.099]
[1673466575637,30.46551064,1342.3,1341.8,22.54610023]
[1673466575638,31.02441064,1342.3,1341.8,22.54610023]
[1673466575852,12.20066144,1342.2,1341.8,10.4135573]
[1673466576165,3.0,1342.1,1341.8,17.8662273]
[1673466576585,10.45101,1342.1,1341.8,15.09373023]
[1673466576851,3.0,1342.1,1341.8,15.09373023]
[1673466577246,3.0,1342.1,1341.8,22.54640023]
[1673466577445,3.0,1342.1,1341.8,15.09373023]
[1673466577976,10.45101,1342.1,1341.8,15.09373023]
[1673466578588,10.45101,1342.1,1341.8,7.64106023]
[1673466578829,17.90202,1342.1,1341.8,0.18873023]
[1673466579027,17.90202,1342.1,1341.8,0.08973023]
[1673466580512,10.45101,1342.1,1341.8,14.99496023]
[1673466580771,14.70607417,1342.1,1341.8,7.64129023]
[1673466580897,10.45101,1342.1,1341.8,7.64129023]
[1673466581267,11.00991,1342.1,1341.8,7.64129023]
[1673466581424,11.00991,1342.1,1341.8,15.09396023]
[1673466581787,11.01191,1342.1,1341.8,7.63829023]
[1673466582111,11.00991,1342.1,1341.8,7.64129023]
[1673466582263,11.00991,1342.1,1341.8,15.09396023]
[1673466582476,8.00991,1342.1,1341.8,15.09396023]
[1673466582684,11.00991,1342.1,1341.8,7.64129023]
[1673466582995,25.9119,1342.1,1341.8,0.18873023]
[1673466583209,18.4609,1342.1,1341.8,7.54232023]
[1673466583419,11.0119,1342.1,1341.8,15.09099023]
[1673466583630,8.0099,1342.1,1341.8,15.09399023]
[1673466583841,11.0099,1342.1,1341.8,15.09399023]
[1673466584086,0.5589,1342.1,1341.8,15.09399023]
[1673466584292,0.5589,1342.1,1341.8,25.0867146]
[1673466584558,17.7568117,1342.2,1341.8,25.0867146]
[1673466584837,14.64426064,1342.2,1341.8,25.0867146]
[1673466585257,29.54531064,1342.2,1341.8,25.0867146]
[1673466585625,29.54731064,1342.2,1341.8,25.0837146]
[1673466585835,29.54531064,1342.2,1341.8,25.0867146]
[1673466586256,22.09471064,1342.2,1341.8,25.0867146]
[1673466587566,14.64426064,1342.2,1341.8,25.0867146]
[1673466587878,13.32026064,1342.2,1341.8,25.0867146]
[1673466588096,12.9752,1342.3,1341.9,2.50867146]
[1673466588253,12.9092,1342.3,1342.0,22.35468]
[1673466588464,12.9092,1342.3,1342.0,22.45368]
[1673466588985,31.60664064,1342.3,1342.0,0.099]
[1673466589252,31.60664064,1342.3,1341.8,7.64130023]
[1673466589253,0.00359517,1342.0,1341.8,7.64130023]
[1673466589455,0.00359517,1342.0,1341.8,0.18873023]
[1673466589666,0.00359517,1342.0,1341.8,9.3880094]
[1673466589881,0.00359517,1342.0,1341.8,9.4840094]
[1673466590802,0.00359517,1342.0,1341.8,11.4840094]
[1673466591227,0.00359517,1342.0,1341.8,4.0313794]
[1673466591438,0.00359517,1342.0,1341.8,9.3847094]
[1673466591656,0.00359517,1342.0,1341.8,9.4837094]
[1673466592120,0.00359517,1342.0,1341.8,16.9363794]
[1673466592269,0.00359517,1342.0,1341.8,24.3890494]
[1673466592931,0.00359517,1342.0,1341.8,16.9363794]
[1673466593143,3.80125581,1342.0,1341.8,0.18873023]
[1673466593354,3.80125581,1342.0,1341.8,0.08973023]
[1673466593545,3.80125581,1342.0,1341.8,7.54231023]
[1673466593769,3.80125581,1342.0,1341.8,7.64131023]
[1673466593982,3.80125581,1342.0,1341.8,0.18873023]
[1673466594187,3.80125581,1342.0,1341.8,0.08973023]
[1673466594403,3.80125581,1342.0,1341.8,14.99499023]
[1673466594613,3.80125581,1342.0,1341.8,7.64132023]
[1673466594825,3.80125581,1342.0,1341.8,15.09399023]
[1673466595163,18.70637581,1342.0,1341.8,0.18573023]
[1673466595317,18.70437581,1342.0,1341.8,0.08973023]
[1673466595827,11.25281581,1342.0,1341.8,0.08973023]
[1673466595955,3.80125581,1342.0,1341.8,0.08973023]
[1673466596170,3.80125581,1342.0,1341.8,7.54231023]
[1673466596501,3.79867783,1342.0,1341.8,15.09398023]
[1673466596717,0.00101719,1342.0,1341.9,1.84845705]
[1673466596889,0.00101719,1342.0,1341.9,24.20481705]
[1673466597222,0.00101719,1342.0,1341.9,24.30381705]
[1673466598261,0.00101719,1342.0,1341.9,25.40822004]
[1673466598471,0.00101719,1342.0,1341.9,27.06464673]
[1673466598681,0.00101719,1342.0,1341.9,31.28731458]
[1673466599122,0.00101719,1342.0,1341.9,32.95575064]
[1673466599525,0.00101719,1342.0,1341.9,30.18291159]
[1673466599762,0.00101719,1342.0,1341.9,34.06068356]
[1673466600302,0.00101719,1342.0,1341.9,31.28784451]
[1673466601325,0.00101719,1342.0,1341.9,32.95575064]
[1673466601666,0.00101719,1342.0,1341.9,30.18291159]
[1673466604936,0.00101719,1342.0,1341.9,32.39191264]
[1673466605129,0.00101719,1342.0,1341.9,32.38891264]
[1673466605314,0.00101719,1342.0,1341.9,32.39191264]
[1673466606622,0.00101719,1342.0,1341.9,23.83633606]
[1673466607203,0.00101719,1342.0,1341.9,4.70942821]
[1673466607409,1.16001719,1342.0,1341.9,2.95400152]
[1673466608050,1.16201719,1342.0,1341.9,2.95400152]
[1673466608298,0.00101719,1342.0,1341.9,2.95400152]
[1673466610513,0.00101719,1342.0,1341.9,25.86124374]
[1673466610741,0.00101719,1342.0,1341.9,32.01640465]
[1673466611575,0.00101719,1342.0,1341.9,30.35997796]
[1673466613149,0.00101719,1342.0,1341.9,33.12020157]
[1673466613992,0.00101719,1342.0,1341.9,15.45573796]
[1673466614199,0.00101719,1342.0,1341.9,22.90785796]
[1673466614409,0.00101719,1342.0,1341.9,30.35997796]
[1673466614583,0.00101719,1342.0,1341.9,18.21596157]
[1673466614935,0.00101719,1342.0,1341.9,33.12020157]
[1673466617761,9.2445,1342.2,1342.0,14.90501013]
[1673466617978,9.2445,1342.2,1342.1,2.95473852]
[1673466618194,12.9752,1342.3,1342.1,2.95473852]
[1673466618422,20.41614248,1342.3,1342.1,10.40552852]
[1673466618579,20.41614248,1342.3,1342.2,1.84845705]
[1673466618831,7.50694248,1342.3,1342.2,1.84827014]
[1673466621857,14.95683248,1342.3,1342.1,1.84827014]
[1673466622069,22.40672248,1342.3,1342.0,2.8673938]
[1673466622296,22.40672248,1342.3,1342.1,1.84833429]
[1673466622297,29.85661248,1342.3,1342.1,1.84833429]
[1673466622471,2.98566125,1342.2,1342.0,2.8673938]
[1673466622681,2.98566125,1342.2,1342.1,1.84833842]
[1673466622893,2.98566125,1342.2,1342.0,4.71573222]
[1673466623131,2.98566125,1342.2,1342.1,1.84833842]
[1673466623345,2.98566125,1342.2,1342.0,4.71573222]
[1673466623523,29.92299248,1342.3,1342.1,1.84833842]
[1673466623735,29.85699248,1342.3,1342.1,1.84833842]
[1673466623943,14.95683248,1342.3,1342.1,1.84833842]
[1673466625646,7.50694248,1342.3,1342.1,1.84833842]
[1673466625858,14.95687248,1342.3,1342.1,1.84833842]
[1673466626817,1.49568725,1342.2,1342.1,1.84833842]
[1673466630063,23.58846083,1342.3,1342.1,1.84833842]
[1673466630383,14.95687248,1342.3,1342.1,1.84833842]
[1673466630576,7.50694248,1342.3,1342.1,1.84833842]
[1673466630774,14.95689248,1342.3,1342.1,1.84833842]
[1673466630985,22.40684248,1342.3,1342.1,1.84833842]
[1673466631203,6.03834489,1342.2,1342.1,1.84833842]
[1673466631394,28.94859489,1342.2,1342.1,1.84833842]
[1673466631750,33.06410324,1342.2,1342.0,0.00269013]
[1673466631967,26.15066064,1342.1,1342.0,0.00269013]
[1673466632750,11.24866064,1342.1,1342.0,0.00269013]
[1673466632964,8.01614896,1342.1,1342.0,0.00269013]
[1673466633175,15.46714896,1342.1,1342.0,0.00269013]
[1673466633385,8.01614896,1342.1,1342.0,0.00269013]
[1673466633624,15.97430358,1342.1,1342.0,0.00269013]
[1673466634092,23.42530358,1342.1,1342.0,0.00269013]
[1673466634680,21.45356333,1342.1,1342.0,0.00269013]
[1673466635680,28.90456333,1342.1,1342.0,0.00269013]
[1673466637533,31.6933342,1342.1,1342.0,0.00269013]
[1673466638575,30.02007168,1342.1,1342.0,0.00269013]
[1673466639042,30.57897168,1342.1,1342.0,0.00269013]
[1673466640252,29.46346333,1342.1,1342.0,0.00269013]
[1673466640679,30.57897168,1342.1,1342.0,0.00269013]
[1673466641296,35.05097168,1342.1,1342.0,0.00269013]
[1673466643446,39.08297768,1342.1,1342.0,0.00269013]
[1673466643671,36.7242342,1342.1,1342.0,0.00269013]
[1673466643969,35.05097168,1342.1,1342.0,0.00269013]
[1673466644182,36.7242342,1342.1,1342.0,0.00269013]
[1673466644397,39.08297768,1342.1,1342.0,0.00269013]
[1673466644835,35.05097168,1342.1,1342.0,0.00269013]
[1673466648043,39.31297768,1342.1,1342.0,0.00269013]
[1673466648566,40.9862402,1342.1,1342.0,0.00269013]
[1673466649360,39.31297768,1342.1,1342.0,0.00269013]
[1673466651450,0.00029806,1342.0,1341.8,0.08973023]
[1673466651608,26.15402064,1341.9,1341.8,0.08973023]
[1673466654080,24.98075503,1342.0,1341.8,0.08973023]
[1673466654081,20.50875503,1342.0,1341.8,0.08973023]
[1673466654236,20.7120887,1342.0,1341.8,0.08973023]
[1673466654448,28.1638487,1342.0,1341.8,0.08973023]
[1673466654916,35.6156087,1342.0,1341.8,0.08973023]
[1673466658120,35.6176087,1342.0,1341.8,0.08973023]
[1673466658487,28.1638487,1342.0,1341.8,0.08973023]
[1673466659068,35.6156087,1342.0,1341.8,0.08973023]
[1673466659392,40.90454486,1342.0,1341.8,0.08973023]
[1673466659935,33.45278486,1342.0,1341.8,0.08973023]
[1673466660334,40.90434486,1342.0,1341.8,0.08973023]
[1673466660544,28.1636487,1342.0,1341.8,0.08973023]
[1673466661123,35.6152087,1342.0,1341.8,0.08973023]
[1673466661275,0.00029806,1342.0,1341.8,0.08973023]
[1673466661484,0.00029806,1342.0,1341.8,14.99454023]
[1673466661695,0.00029806,1342.0,1341.9,16.40369402]
[1673466661906,0.00029806,1342.0,1341.9,25.80334303]
[1673466662115,0.00029806,1342.0,1341.9,26.9096245]
[1673466662356,0.00029806,1342.0,1341.9,12.0053845]
[1673466662583,0.00029806,1342.0,1341.9,19.4575045]
[1673466662956,0.00029806,1342.0,1341.9,12.0053845]
[1673466663694,0.00029806,1342.0,1341.9,14.0053845]
[1673466664111,0.00029806,1342.0,1341.9,21.4575045]
[1673466664637,0.00029806,1342.0,1341.9,12.0053845]
[1673466664879,0.00029806,1342.0,1341.9,10.89910303]
[1673466665210,0.00029806,1342.0,1341.9,19.4575045]
[1673466666108,0.00029806,1342.0,1341.9,26.9096245]
[1673466666329,0.00029806,1342.0,1341.9,3.44698303]
[1673466666639,0.00029806,1342.0,1341.8,2.96156928]
[1673466666640,8.61085806,1342.0,1341.8,2.96156928]
[1673466666852,8.61085806,1342.0,1341.8,0.08973023]
[1673466667698,7.45195806,1342.0,1341.8,1.1960117]
[1673466667946,0.00029806,1342.0,1341.8,10.49722789]
[1673466668116,0.00029806,1342.0,1341.9,1.84863619]
[1673466670028,0.00029806,1342.0,1341.9,17.85915766]
[1673466670360,0.00029806,1342.0,1341.9,10.50603766]
[1673466670536,0.00029806,1342.0,1341.9,3.05391766]
[1673466670739,0.00029806,1342.0,1341.9,2.95491766]
[1673466670987,0.00029806,1342.0,1341.9,13.63845295]
[1673466671145,0.00029806,1342.0,1341.9,13.73745295]
[1673466672131,0.00029806,1342.0,1341.9,21.18957295]
[1673466672774,0.00029806,1342.0,1341.9,13.73745295]
[1673466672932,0.00029806,1342.0,1341.9,6.28533295]
[1673466673143,0.00029806,1342.0,1341.9,6.28233295]
[1673466673403,0.00029806,1342.0,1341.9,9.28533295]
[1673466673829,0.00029806,1342.0,1341.9,6.28533295]
[1673466674234,0.00029806,1342.0,1341.9,5.17905148]
[1673466674477,0.00029806,1342.0,1341.9,1.94763619]
[1673466674630,7.45185806,1342.0,1341.9,1.84863619]
[1673466675414,14.90341806,1342.0,1341.9,1.84863619]
[1673466676344,22.35497806,1342.0,1341.8,1.1960117]
[1673466676881,22.35468,1342.0,1341.8,1.1960117]
[1673466677056,22.35468,1342.0,1341.8,0.08973023]
[1673466677057,17.139708,1341.9,1341.8,0.08973023]
[1673466677267,14.90424,1341.9,1341.8,0.08973023]
[1673466677513,14.90424,1341.9,1341.8,1.93847055]
[1673466677832,22.35636,1341.9,1341.8,1.93847055]
[1673466678412,14.90424,1341.9,1341.8,1.93847055]
[1673466678753,7.45212,1341.9,1341.8,1.93847055]
[1673466680678,14.90424,1341.9,1341.8,1.93847055]
[1673466680876,7.45212,1341.9,1341.8,1.93847055]
[1673466681989,35.13249064,1342.0,1341.8,1.93847055]
[1673466682199,27.61440064,1342.0,1341.8,0.08973023]
[1673466682637,27.61440064,1342.0,1341.8,1.1960117]
[1673466682638,20.16255064,1342.0,1341.8,1.1960117]
[1673466682885,8.9133,1342.0,1341.8,6.49820111]
[1673466683062,0.57315462,1342.1,1341.9,1.84862514]
[1673466683274,0.50715462,1342.1,1341.9,2.95490661]
[1673466683481,0.50715462,1342.1,1341.8,25.3114539]
[1673466683725,0.50715462,1342.1,1341.9,1.84853507]
[1673466684232,0.50715462,1342.1,1341.9,10.40690654]
[1673466684431,0.50715462,1342.1,1342.0,1.84853507]
[1673466686286,15.40915462,1342.1,1342.0,1.84853507]
[1673466686460,15.40915462,1342.1,1341.9,1.10628147]
[1673466686679,15.40915462,1342.1,1341.9,2.95480136]
[1673466687354,7.95815462,1342.1,1341.9,2.95480136]
[1673466687570,7.95815462,1342.1,1341.8,25.5936539]
[1673466687825,7.95815462,1342.1,1341.9,1.84852759]
[1673466687988,7.96015462,1342.1,1341.9,2.95480906]
[1673466688203,7.95815462,1342.1,1341.9,2.95480906]
[1673466688624,22.86015462,1342.1,1341.9,1.84852759]
[1673466688838,22.86015462,1342.1,1341.8,10.6885339]
[1673466689045,22.86015462,1342.1,1341.9,1.84855888]
[1673466689495,15.40915462,1342.1,1341.9,1.84855888]
[1673466690424,15.40915462,1342.1,1341.9,2.95484035]
[1673466691460,22.86015462,1342.1,1341.9,2.95484035]
[1673466691706,22.86015462,1342.1,1341.8,12.28638808]
[1673466691907,22.86215462,1342.1,1341.9,1.84855469]
[1673466692190,22.86015462,1342.1,1341.9,1.84855469]
[1673466692889,22.86015462,1342.1,1341.9,2.95483616]
[1673466693563,22.86015462,1342.1,1341.9,1.10628147]
[1673466693774,22.86015462,1342.1,1341.8,2.8554339]
[1673466694151,22.86015462,1342.1,1341.9,2.95484742]
[1673466694444,26.65781526,1342.1,1341.9,2.95484742]
[1673466694767,26.65781526,1342.1,1341.8,2.9544339]
[1673466695072,26.65781526,1342.1,1341.9,1.8485934]
[1673466699379,27.77332361,1342.1,1341.9,1.8485934]
[1673466699589,32.43417622,1342.1,1341.9,1.8485934]
[1673466700513,24.98317622,1342.1,1341.9,2.95487487]
[1673466700706,10.82670835,1342.2,1342.1,1.46463137]
[1673466700922,4.35856064,1342.2,1342.1,1.46463137]
[1673466701132,4.35656064,1342.2,1342.1,1.46463137]
[1673466701594,11.80701064,1342.2,1342.1,1.46463137]
[1673466701812,8.00935,1342.2,1342.1,1.46463137]
[1673466702127,15.4598,1342.2,1342.1,1.46463137]
[1673466702285,14.9009,1342.2,1342.1,1.46463137]
[1673466702699,7.45045,1342.2,1342.1,1.72172265]
[1673466702975,1.18150835,1342.3,1342.1,18.47208916]
[1673466703278,11.37320835,1342.4,1342.1,17.82900412]
[1673466703490,10.74840835,1342.4,1342.2,1.84826493]
[1673466703655,10.74840835,1342.4,1342.2,9.29869493]
[1673466703861,1.11550835,1342.4,1342.2,10.26219991]
[1673466704130,15.99827087,1342.5,1342.2,17.71264991]
[1673466704335,27.51666899,1342.5,1342.2,10.26219991]
[1673466704494,34.96553899,1342.5,1342.2,10.26219991]
[1673466704703,42.41440899,1342.5,1342.2,2.81176991]
[1673466704981,42.41440899,1342.5,1342.2,2.71276991]
[1673466705123,44.08767151,1342.5,1342.2,2.71276991]
[1673466705334,1.11550835,1342.4,1342.2,2.71276991]
[1673466705543,1.11550835,1342.4,1342.1,9.27140265]
[1673466705544,8.56503835,1342.4,1342.1,9.27140265]
[1673466706012,16.01456835,1342.4,1342.1,9.27140265]
[1673466706239,14.89906,1342.4,1342.1,9.27140265]
[1673466706405,7.44953,1342.4,1342.1,16.72240265]
[1673466706617,7.44953,1342.4,1342.1,9.27140265]
[1673466706850,14.89887,1342.4,1342.2,0.92714027]
[1673466707172,7.44934,1342.4,1342.2,0.92714027]
[1673466709117,7.44934,1342.4,1342.1,1.82072265]
[1673466709118,25.34802,1342.4,1342.1,1.82072265]
[1673466709331,26.46352835,1342.4,1342.1,1.46463137]
[1673466709783,30.26118899,1342.4,1342.1,1.46463137]
[1673466710181,6.79766064,1342.3,1342.1,1.46463137]
[1673466710530,14.9009,1342.2,1342.1,1.46463137]
[1673466710757,22.35135,1342.2,1342.1,1.46463137]
[1673466710922,18.56743606,1342.2,1342.1,1.46463137]
[1673466712163,26.01788606,1342.2,1342.1,1.46463137]
[1673466712373,18.56743606,1342.2,1342.1,1.46463137]
[1673466713062,29.8155467,1342.2,1342.1,1.46463137]
[1673466713221,22.3650967,1342.2,1342.1,1.46463137]
[1673466713431,29.8155467,1342.2,1342.1,1.46463137]
[1673466716305,30.93105505,1342.2,1342.1,1.46463137]
[1673466716486,29.8155467,1342.2,1342.1,1.46463137]
[1673466716685,30.3744467,1342.2,1342.1,1.46463137]
[1673466718404,31.48995505,1342.2,1342.1,1.46463137]
[1673466719523,24.03950505,1342.2,1342.1,1.46463137]
[1673466719771,31.48995505,1342.2,1342.1,1.46463137]
[1673466720615,30.76087132,1342.2,1342.1,1.46463137]
[1673466722780,30.20197132,1342.2,1342.1,1.46463137]
[1673466722991,31.31747967,1342.2,1342.1,1.46463137]
[1673466723643,30.20197132,1342.2,1342.1,1.46463137]
[1673466724256,31.31747967,1342.2,1342.1,1.46463137]
[1673466726398,19.08498526,1342.2,1342.1,1.46463137]
[1673466726770,26.53543526,1342.2,1342.1,1.46463137]
[1673466728905,0.38642462,1342.2,1342.1,1.46463137]
[1673466729116,8.63109835,1342.4,1342.3,1.1746109]
[1673466729328,3.79766064,1342.4,1342.3,1.1746109]
[1673466729545,11.24700064,1342.4,1342.3,1.1746109]
[1673466729983,12.36250899,1342.4,1342.3,1.1746109]
[1673466730518,19.81184899,1342.4,1342.3,1.1746109]
[1673466730735,32.47743314,1342.4,1342.3,1.1746109]
[1673466730889,34.15069566,1342.4,1342.3,1.1746109]
[1673466731313,32.47743314,1342.4,1342.3,1.1746109]
[1673466732308,4.91316899,1342.4,1342.3,1.1746109]
[1673466732525,3.79766064,1342.4,1342.3,1.1746109]
[1673466732825,11.24700064,1342.4,1342.3,1.1746109]
[1673466735092,38.68313835,1342.5,1342.3,1.1746109]
[1673466735300,7.44934,1342.4,1342.3,1.1746109]
[1673466735513,14.89868,1342.4,1342.3,1.1746109]
[1673466736353,25.53953835,1342.5,1342.3,1.29207199]
[1673466736563,18.02429835,1342.5,1342.3,1.29207199]
[1673466737032,25.47325835,1342.5,1342.3,1.29207199]
[1673466737245,24.35775,1342.5,1342.3,1.29207199]
[1673466737462,14.89775,1342.5,1342.3,1.29207199]
[1673466738412,14.89975,1342.5,1342.3,1.29207199]
[1673466738638,14.89775,1342.5,1342.3,1.29207199]
[1673466739417,16.01325835,1342.5,1342.3,1.29207199]
[1673466739667,14.89775,1342.5,1342.3,1.29207199]
[1673466739978,16.01325835,1342.5,1342.3,1.29207199]
[1673466741677,23.46221835,1342.5,1342.3,1.29207199]
[1673466741821,1.11550835,1342.5,1342.3,1.29207199]
[1673466742031,27.9082637,1342.6,1342.3,1.29207199]
[1673466742032,39.36776366,1342.7,1342.6,0.48408871]
[1673466742290,1.21983366,1342.7,1342.6,0.48408871]
[1673466742507,8.66751366,1342.7,1342.6,0.48408871]
[1673466742819,11.66751366,1342.7,1342.6,0.48408871]
[1673466743660,19.11519366,1342.7,1342.6,0.48408871]
[1673466746183,32.03379682,1342.7,1342.6,0.48408871]
[1673466746400,38.58659594,1342.7,1342.6,0.48408871]
[1673466747497,39.70218877,1342.7,1342.6,0.48408871]
[1673466747709,37.47108759,1342.7,1342.6,0.48408871]
[1673466747949,48.16055221,1342.7,1342.6,0.48408871]
[1673466748177,48.15805826,1342.7,1342.6,0.48408871]
[1673466748363,48.71660248,1342.7,1342.6,0.48408871]
[1673466750177,48.84850273,1342.7,1342.6,0.48408871]
[1673466750503,53.06486617,1342.7,1342.6,0.48408871]
[1673466750863,12.309,1342.5,1342.3,1.1746109]
[1673466751076,3.0,1342.3,1342.1,1.46463137]
[1673466751432,39.9743679,1342.2,1342.1,1.46463137]
[1673466751644,43.93758698,1342.2,1342.1,1.46463137]
[1673466753313,39.9743679,1342.2,1342.1,1.46463137]
[1673466753503,41.89249259,1342.2,1342.1,1.46463137]
[1673466754337,40.77848533,1342.2,1342.1,1.46463137]
[1673466757003,40.21958533,1342.2,1342.1,1.46463137]
[1673466758554,44.18280441,1342.2,1342.1,1.46463137]
[1673466758870,40.21958533,1342.2,1342.1,1.46463137]
[1673466762262,49.96782256,1342.2,1341.8,0.08973023]
[1673466762592,29.80624,1342.0,1341.8,0.08973023]
[1673466762811,6.79766064,1341.9,1341.8,0.08973023]
[1673466763020,24.519205,1341.9,1341.8,0.08973023]
[1673466763767,2.162845,1341.9,1341.8,0.08973023]
[1673466763929,9.614965,1341.9,1341.8,0.08973023]
[1673466764278,15.09497587,1341.9,1341.8,0.08973023]
[1673466765209,7.64285587,1341.9,1341.8,0.08973023]
[1673466765617,15.09497587,1341.9,1341.8,0.08973023]
[1673466765803,7.64285587,1341.9,1341.8,0.08973023]
[1673466766271,0.19073587,1341.9,1341.8,0.08973023]
[1673466766493,16.25397587,1341.9,1341.8,0.08973023]
[1673466767089,23.70609587,1341.9,1341.8,0.08973023]
[1673466767296,25.26211273,1341.9,1341.8,0.08973023]
[1673466767643,33.69877231,1341.9,1341.8,2.3e-07]
[1673466768253,29.73411273,1341.9,1341.8,2.3e-07]
[1673466769427,29.96411273,1341.9,1341.8,2.3e-07]
[1673466769636,30.52311273,1341.9,1341.8,2.3e-07]
[1673466770487,8.16675273,1341.9,1341.8,2.3e-07]
[1673466770822,28.73709587,1341.9,1341.8,2.3e-07]
[1673466771410,0.74973587,1341.9,1341.8,2.3e-07]
[1673466771674,0.19073587,1341.9,1341.8,2.3e-07]
[1673466771979,22.54709587,1341.9,1341.8,2.3e-07]
[1673466773227,22.54909587,1341.9,1341.8,2.3e-07]
[1673466773441,22.54709587,1341.9,1341.8,2.3e-07]
[1673466775539,26.94362946,1341.9,1341.8,2.3e-07]
[1673466777771,31.41562946,1341.9,1341.8,2.3e-07]
[1673466778195,31.64562946,1341.9,1341.8,2.3e-07]
[1673466783775,27.24909587,1341.9,1341.8,2.3e-07]
[1673466783962,27.01909587,1341.9,1341.8,2.3e-07]
[1673466787254,27.02109587,1341.9,1341.8,2.3e-07]
[1673466787564,27.01909587,1341.9,1341.8,2.3e-07]
[1673466790837,28.13310313,1341.9,1341.8,2.3e-07]
[1673466793369,34.70192415,1341.9,1341.8,2.3e-07]
[1673466794316,4.16156909,1341.8,1341.7,0.08100683]
[1673466794477,31.43317952,1341.8,1341.7,0.08100683]
[1673466795527,31.43517952,1341.8,1341.7,0.08100683]
[1673466795733,31.43317952,1341.8,1341.7,0.08100683]
[1673466796393,33.39787287,1341.8,1341.7,0.08100683]
[1673466796815,44.83654334,1341.8,1341.7,0.08100683]
[1673466797046,39.43087287,1341.8,1341.7,0.08100683]
[1673466797262,41.10188376,1341.8,1341.7,0.08100683]
[1673466798573,39.43087287,1341.8,1341.7,0.08100683]
[1673466799518,41.10188376,1341.8,1341.7,0.08100683]
[1673466800997,47.50635083,1341.8,1341.7,0.08100683]
[1673466801238,45.27860355,1341.8,1341.7,0.08100683]
[1673466801452,54.36130355,1341.8,1341.7,0.08100683]
[1673466801854,50.39664397,1341.8,1341.7,0.08100683]
[1673466802059,54.36130355,1341.8,1341.7,0.08100683]
[1673466802501,56.58905083,1341.8,1341.7,0.08100683]
[1673466803568,50.39664397,1341.8,1341.7,0.08100683]
[1673466803787,54.36130355,1341.8,1341.7,0.08100683]
[1673466804095,50.39664397,1341.8,1341.7,0.08100683]
[1673466805837,50.95574397,1341.8,1341.7,0.08100683]
[1673466806509,52.07153705,1341.8,1341.7,0.08100683]
[1673466806673,52.07353705,1341.8,1341.7,0.08100683]
[1673466806894,52.07153714,1341.8,1341.7,0.08100683]
[1673466807265,54.92040355,1341.8,1341.7,0.08100683]
[1673466807406,52.07150596,1341.8,1341.7,0.08100683]
[1673466808037,52.07150596,1341.8,1341.6,0.08349289]
[1673466808249,11.73978533,1341.7,1341.6,0.08349289]
[1673466808456,34.09947533,1341.7,1341.6,0.08349289]
[1673466809099,32.77747533,1341.7,1341.6,0.08349289]
[1673466809518,15.72289064,1341.7,1341.6,0.08349289]
[1673466809733,3.79766064,1341.7,1341.6,1.93254796]
[1673466809943,1.82533523,1341.7,1341.6,0.08349289]
[1673466810142,3.82533523,1341.7,1341.6,0.08349289]
[1673466810355,9.27856523,1341.7,1341.6,0.08349289]
[1673466811120,9.28056523,1341.7,1341.6,0.08349289]
[1673466811451,9.27856523,1341.7,1341.6,1.93254566]
[1673466813555,9.27856523,1341.7,1341.6,0.08349289]
[1673466813716,9.27856523,1341.7,1341.5,3.04506894]
[1673466813925,9.27856523,1341.7,1341.5,2.83299144]
[1673466814136,12.27856523,1341.7,1341.5,2.83299144]
[1673466814641,19.73179523,1341.7,1341.5,2.83299144]
[1673466814831,27.18502523,1341.7,1341.5,2.83299144]
[1673466815043,27.18502523,1341.7,1341.5,0.08973023]
[1673466815851,1.5,1341.6,1341.5,0.08973023]
[1673466816240,8.95378,1341.6,1341.5,0.08973023]
[1673466816538,8.95378,1341.6,1341.5,1.93887341]
[1673466816728,7.45378,1341.6,1341.5,1.93887341]
[1673466817849,27.25145523,1341.7,1341.5,1.93887341]
[1673466818061,27.18545523,1341.7,1341.5,0.08973023]
[1673466819213,19.73179523,1341.7,1341.5,0.08973023]
[1673466820089,19.73179523,1341.7,1341.5,3.04512212]
[1673466820277,19.73179523,1341.7,1341.5,0.08973023]
[1673466820482,27.18546523,1341.7,1341.5,0.08973023]
[1673466820728,27.18546523,1341.7,1341.5,1.1960117]
[1673466821155,27.18546523,1341.7,1341.5,0.08973023]
[1673466821774,3.0,1341.6,1341.5,0.08973023]
[1673466821966,10.45378,1341.6,1341.5,1.93887847]
[1673466823754,27.25139523,1341.7,1341.5,1.93887847]
[1673466823975,27.18539523,1341.7,1341.5,0.08973023]
[1673466824407,2.0,1341.6,1341.5,0.08973023]
[1673466824583,2.0,1341.6,1341.5,1.93890126]
[1673466824788,9.45378,1341.6,1341.5,1.93890126]
[1673466826079,7.45378,1341.6,1341.5,1.93890126]
[1673466826742,14.90756,1341.6,1341.5,1.93890126]
[1673466827157,14.90756,1341.6,1341.5,3.04518273]
[1673466827372,14.90756,1341.6,1341.5,3.53479732]
[1673466827739,14.90756,1341.6,1341.5,2.42851585]
[1673466827954,14.90756,1341.6,1341.5,1.93890126]
[1673466828291,22.36134,1341.6,1341.5,1.93890126]
[1673466829787,20.38884273,1341.6,1341.5,1.93890126]
[1673466830305,24.18650337,1341.6,1341.5,1.93890126]
[1673466831325,28.14963829,1341.6,1341.4,1.29782246]
[1673466831570,31.47564447,1341.5,1341.4,0.09254099]
[1673466831747,28.97564447,1341.5,1341.4,0.09254099]
[1673466832796,18.70634064,1341.5,1341.4,0.09254099]
[1673466833670,3.79766064,1341.5,1341.4,0.09254099]
[1673466834540,10.01928273,1341.6,1341.4,0.09254099]
[1673466834714,21.20506337,1341.6,1341.4,1.19882246]
[1673466835528,3.79766064,1341.6,1341.4,1.19882246]
[1673466835935,22.98561,1341.7,1341.4,13.08401364]
[1673466836062,27.83303263,1341.7,1341.4,13.18301364]
[1673466836481,26.71727064,1341.7,1341.4,13.18301364]
[1673466836727,4.35676064,1341.7,1341.5,1.10628147]
[1673466836948,3.79766064,1341.7,1341.5,3.33617183]
[1673466838314,11.25097064,1341.7,1341.5,3.33617183]
[1673466838527,18.70428064,1341.7,1341.5,0.45637647]
[1673466838738,18.70428064,1341.7,1341.4,9.05631391]
[1673466838958,18.70428064,1341.7,1341.4,6.28293217]
[1673466839322,18.70628064,1341.7,1341.4,6.27993217]
[1673466839592,18.70628064,1341.7,1341.4,6.28293217]
[1673466839593,18.70428064,1341.7,1341.4,6.28293217]
[1673466840193,26.15759064,1341.7,1341.4,6.28293217]
[1673466840685,26.15959064,1341.7,1341.4,6.27993217]
[1673466840901,18.70428064,1341.7,1341.4,12.07670217]
[1673466842470,27.27327263,1341.7,1341.4,5.73589171]
[1673466842732,19.81996263,1341.7,1341.4,7.65520238]